bitfinex-derivatives/quotes_ETHF0:USTF0_20250612
["timestamp","ask_amount","ask_price","bid_price","bid_amount"]
[1749701433381,1.80927,2763.0,2762.6,4.428]
[1749701433582,0.72377,2762.8,2762.7,16.817]
[1749701433885,0.72377,2762.8,2762.4,0.00543114]
[1749701434076,0.72382,2762.6,2762.5,21.245]
[1749701434280,2.17167367,2762.6,2762.5,21.245]
[1749701434487,3.43017367,2762.6,2762.5,21.245]
[1749701434677,1.44785367,2762.6,2762.5,21.96883]
[1749701438486,1.42267,2763.2,2762.6,1.80953]
[1749701438686,1.42267,2763.2,2763.0,0.72369]
[1749701438986,1.42267,2763.2,2763.1,21.245]
[1749701439181,3.901,2763.4,2763.1,21.96868]
[1749701439386,3.2078,2763.4,2763.3,0.72363]
[1749701439590,0.72363,2763.3,2763.2,0.72364]
[1749701440084,3.2078,2763.4,2763.3,0.72363]
[1749701440486,3.93142,2763.4,2763.2,0.72364]
[1749701440885,4.47422,2763.4,2763.2,0.72364]
[1749701441182,4.47422,2763.4,2763.1,21.245]
[1749701441183,3.7506,2763.4,2763.3,0.72363]
[1749701441385,4.4742,2763.4,2763.3,0.72363]
[1749701441687,4.4742,2763.4,2763.2,0.72364]
[1749701442280,0.72363,2763.3,2763.2,0.72364]
[1749701445986,0.72365,2763.2,2763.1,21.96867]
[1749701446790,0.72364,2763.3,2763.2,0.72365]
[1749701447286,0.5428,2763.4,2763.1,21.245]
[1749701447485,0.72365,2763.2,2763.1,21.96867]
[1749701447883,0.72365,2763.3,2763.2,0.72365]
[1749701448184,0.72363,2763.3,2763.2,0.72364]
[1749701448385,1.26641,2763.4,2763.3,0.72363]
[1749701449586,0.72365,2763.2,2763.1,21.96867]
[1749701450082,0.72365,2763.3,2763.2,0.72365]
[1749701450585,2.17115064,2763.3,2763.2,0.72365]
[1749701450786,2.17115064,2763.3,2763.1,21.245]
[1749701450787,0.72365,2763.2,2763.1,21.96866]
[1749701450983,2.17115064,2763.2,2763.1,4.428]
[1749701451290,2.17115064,2763.2,2763.1,21.96668]
[1749701451291,2.14320064,2763.2,2763.1,21.96668]
[1749701451476,1.44750064,2763.2,2763.1,21.96668]
[1749701452893,2.17115064,2763.2,2763.1,21.96668]
[1749701453496,1.44750064,2763.2,2763.1,21.24]
[1749701453696,1.44750064,2763.2,2763.1,21.96368]
[1749701454288,1.44750064,2763.2,2762.7,21.888]
[1749701454486,3.93155,2762.9,2762.8,4.425]
[1749701454694,5.37905064,2762.9,2762.8,21.239]
[1749701454897,2.17123064,2762.9,2762.8,21.239]
[1749701455494,3.44233064,2762.9,2762.8,21.239]
[1749701455992,6.65013064,2762.9,2762.8,21.239]
[1749701456996,6.65013064,2762.9,2762.8,21.24]
[1749701457688,3.44233064,2762.9,2762.8,21.24]
[1749701459599,2.17123064,2762.9,2762.8,21.24]
[1749701461290,5.37903064,2762.9,2762.8,4.425]
[1749701461491,6.61383064,2762.9,2762.8,21.24]
[1749701462193,6.61383064,2762.9,2762.8,4.425]
[1749701462393,0.72384,2762.5,2762.4,0.00543114]
[1749701462599,5.37914064,2762.5,2762.4,21.24643114]
[1749701463803,5.37914064,2762.5,2762.4,21.97029114]
[1749701464099,2.17134064,2762.5,2762.4,21.24643114]
[1749701464490,1.44750064,2762.5,2762.4,21.97029114]
[1749701469303,1.44750064,2762.5,2762.4,0.00543114]
[1749701469500,2.17134064,2762.5,2762.4,0.00543114]
[1749701470403,2.87654064,2762.5,2762.4,0.00543114]
[1749701472806,0.72397,2762.0,2761.9,25.0948]
[1749701473111,2.17147064,2762.0,2761.9,46.3368]
[1749701473314,2.17147064,2762.0,2761.9,47.06079]
[1749701473609,1.44750064,2762.0,2761.9,47.06079]
[1749701475512,2.17147064,2762.0,2761.9,47.06079]
[1749701476213,1.44750064,2762.0,2761.9,47.06079]
[1749701477109,2.17147064,2762.0,2761.9,29.5218]
[1749701477315,2.17147064,2762.0,2761.9,46.3378]
[1749701478714,1.44750064,2762.0,2761.9,47.06179]
[1749701478912,1.44810642,2762.1,2761.9,29.5218]
[1749701479114,2.1720819,2762.0,2761.9,29.5218]
[1749701479321,2.17207217,2762.0,2761.9,46.3378]
[1749701480214,2.17207217,2762.0,2761.9,47.06179]
[1749701480614,2.17207217,2762.0,2761.9,46.3378]
[1749701481022,2.17207217,2762.0,2761.9,47.06179]
[1749701482322,2.17207217,2762.0,2761.9,46.3378]
[1749701482622,2.17207217,2762.0,2761.9,46.3368]
[1749701482819,4.12667217,2762.0,2761.9,26.314]
[1749701483118,4.12667217,2762.0,2761.9,21.242]
[1749701483322,2.87567217,2762.0,2761.9,21.242]
[1749701483623,0.72402,2761.8,2761.7,0.00543114]
[1749701483827,2.17212217,2761.8,2761.7,21.24443114]
[1749701484218,2.17212217,2761.8,2761.7,4.42943114]
[1749701484418,2.17212217,2761.8,2761.7,21.24443114]
[1749701484719,2.17233671,2761.8,2761.7,21.24443114]
[1749701485825,2.17233671,2761.8,2761.7,4.42943114]
[1749701486020,2.17233671,2761.8,2761.7,21.24443114]
[1749701486724,1.44831671,2761.8,2761.7,21.96848114]
[1749701487324,2.17233671,2761.8,2761.7,21.96848114]
[1749701488126,1.44831671,2761.8,2761.7,21.96848114]
[1749701488526,2.17233671,2761.8,2761.7,21.96848114]
[1749701488927,2.17233671,2761.8,2761.7,21.24443114]
[1749701489225,2.17233671,2761.8,2761.7,16.82043114]
[1749701489425,2.17233671,2761.8,2761.7,17.54448114]
[1749701489629,1.4482793,2761.8,2761.7,16.82043114]
[1749701489828,1.4482793,2761.8,2761.7,18.24808114]
[1749701490030,2.1722993,2761.8,2761.7,18.24808114]
[1749701491219,1.4482793,2761.8,2761.7,18.24808114]
[1749701491418,2.1722993,2761.8,2761.7,18.24808114]
[1749701492229,1.4482793,2761.8,2761.7,18.24808114]
[1749701495024,2.1722993,2761.8,2761.7,18.24808114]
[1749701495425,1.4482793,2761.8,2761.7,18.24808114]
[1749701497033,2.1722993,2761.8,2761.7,18.24808114]
[1749701497430,1.4482793,2761.8,2761.7,18.24808114]
[1749701497932,2.1722993,2761.8,2761.7,18.24808114]
[1749701498133,1.4482793,2761.8,2761.7,18.24808114]
[1749701498631,2.1722993,2761.8,2761.7,18.24608114]
[1749701499629,1.4482793,2761.8,2761.7,18.24608114]
[1749701500429,2.1722993,2761.8,2761.7,18.24608114]
[1749701500935,1.4482793,2761.8,2761.7,18.24608114]
[1749701502232,2.1722993,2761.8,2761.7,18.24608114]
[1749701503530,2.1722993,2761.8,2761.7,0.00543114]
[1749701503834,3.3568993,2761.8,2761.7,0.00543114]
[1749701504039,3.3568993,2761.8,2761.7,21.24143114]
[1749701504539,3.3568993,2761.8,2761.7,21.23843114]
[1749701505637,3.3568993,2761.8,2761.7,4.42643114]
[1749701505938,11.5646993,2761.8,2761.7,0.00543114]
[1749701506143,1.81019,2761.6,2760.8,7.6288]
[1749701506337,3.2078,2761.4,2760.9,17.53624]
[1749701506638,2.6841793,2761.3,2760.9,17.53624]
[1749701506840,0.72423,2761.0,2760.9,16.812]
[1749701507041,2.1725093,2761.0,2760.9,16.812]
[1749701507242,0.72426,2760.9,2760.8,7.6288]
[1749701507435,3.4084393,2760.9,2760.8,25.16508]
[1749701507740,3.4084393,2760.9,2760.8,24.4408]
[1749701508241,3.4084393,2760.9,2760.8,25.16608]
[1749701508740,2.6841793,2760.9,2760.8,25.16608]
[1749701509042,3.4084393,2760.9,2760.8,24.4418]
[1749701509336,1.4482793,2760.9,2760.8,25.16608]
[1749701509639,6.4482793,2760.9,2759.6,16.813]
[1749701509844,3.2078,2760.3,2759.7,7.038]
[1749701510035,2.1727193,2760.2,2759.9,0.72451]
[1749701510336,2.1727593,2760.1,2759.9,0.72451]
[1749701510538,1.4482793,2760.0,2759.8,0.72453]
[1749701510841,1.4482793,2759.9,2759.8,0.72454]
[1749701511038,1.4482793,2759.9,2759.8,21.96054]
[1749701511236,4.6560793,2759.9,2759.7,1.40803114]
[1749701511444,4.6560793,2759.9,2759.8,21.236]
[1749701511445,3.2078,2759.9,2759.8,21.236]
[1749701511630,4.65700395,2759.9,2759.8,21.96054]
[1749701511831,4.65700395,2759.9,2759.8,21.236]
[1749701512030,4.65700395,2759.9,2759.8,21.96054]
[1749701512542,4.65700395,2759.9,2759.8,21.236]
[1749701513537,5.38152395,2759.9,2759.8,21.236]
[1749701514135,5.38152395,2759.9,2759.8,21.239]
[1749701514740,0.72454,2759.8,2759.7,0.00543114]
[1749701514939,3.41324395,2759.8,2759.7,0.00543114]
[1749701515340,0.72471,2759.2,2758.6,3.2078]
[1749701515645,0.72471,2759.2,2759.0,0.72474]
[1749701515840,3.9325,2759.3,2759.1,4.422]
[1749701516040,3.2078,2759.3,2759.2,17.5417]
[1749701516240,0.72464,2759.5,2759.3,0.72466]
[1749701516845,3.2078,2759.6,2759.3,0.72466]
[1749701517040,3.2078,2759.6,2758.6,3.2078]
[1749701517041,1.81163,2759.4,2758.6,3.2078]
[1749701517240,1.81163,2759.4,2757.7,1.81274]
[1749701517241,3.2078,2758.7,2758.5,0.72487]
[1749701517539,3.2078,2758.7,2758.6,21.97586]
[1749701517742,0.00543114,2758.9,2758.8,0.72481]
[1749701517946,3.2078,2759.7,2759.5,0.72461]
[1749701518141,3.2078,2759.7,2759.6,21.7997]
[1749701518340,3.2078,2759.7,2759.6,22.0926]
[1749701519236,3.21323114,2759.9,2759.6,21.368]
[1749701519643,3.93775114,2759.9,2759.7,0.72456]
[1749701520146,3.21323114,2759.9,2759.6,21.368]
[1749701520346,3.93777114,2759.9,2759.7,0.72456]
[1749701520546,0.72455,2759.8,2759.6,22.09259]
[1749701520746,3.93777114,2759.9,2759.7,0.72457]
[1749701521347,3.21323114,2759.9,2759.8,0.72454]
[1749701521541,4.66250391,2759.9,2759.8,0.72454]
[1749701521847,4.66250391,2759.9,2759.7,0.72455]
[1749701522145,3.93775114,2759.9,2759.7,0.72456]
[1749701522347,3.21323114,2759.9,2759.8,0.72454]
[1749701522547,5.38702663,2759.9,2759.7,0.72455]
[1749701522852,3.21323114,2759.9,2759.8,0.72454]
[1749701523042,5.38703218,2759.9,2759.7,0.72456]
[1749701523344,3.21323114,2759.9,2759.6,21.368]
[1749701523645,3.21323114,2759.9,2759.8,0.72454]
[1749701523846,3.93776114,2759.9,2759.7,0.72456]
[1749701524045,3.21323114,2759.9,2759.6,4.423]
[1749701524254,0.72457,2759.7,2759.6,4.423]
[1749701524546,0.72457,2759.7,2759.6,21.341]
[1749701525641,1.94605,2759.8,2759.6,22.06558]
[1749701525856,3.21323114,2759.9,2759.8,0.72454]
[1749701526244,0.00543114,2759.9,2759.8,0.72454]
[1749701526946,0.00543114,2759.9,2759.8,2.07764]
[1749701527646,0.00543114,2759.9,2759.8,2.36881227]
[1749701527946,0.00543114,2759.9,2759.8,2.07764]
[1749701528547,3.2078,2760.5,2760.2,0.72442]
[1749701528746,2.17341273,2760.4,2760.3,21.335]
[1749701528946,0.72444,2760.2,2760.1,21.333]
[1749701529650,2.1421638,2760.2,2759.8,42.87763]
[1749701529848,0.72451,2760.0,2759.9,21.337]
[1749701530247,2.55558,2760.1,2759.9,22.0615]
[1749701530449,0.5434,2760.1,2760.0,0.72449]
[1749701530647,1.99255621,2760.1,2760.0,0.72449]
[1749701531849,1.99255621,2760.1,2759.9,22.06152]
[1749701532151,1.26788,2760.1,2759.9,22.06152]
[1749701532351,1.26788,2760.1,2760.0,0.72449]
[1749701532649,1.9925552,2760.1,2760.0,0.72449]
[1749701533246,1.99250294,2760.1,2760.0,0.72449]
[1749701534350,1.9924294,2760.1,2760.0,1.96729]
[1749701538850,1.9924294,2760.1,2760.0,5.17509]
[1749701539055,1.9924294,2760.1,2760.0,1.96729]
[1749701540856,1.9924294,2760.1,2760.0,0.72449]
[1749701541154,1.9924294,2760.1,2760.0,22.05549]
[1749701541455,1.9924294,2760.1,2760.0,0.72449]
[1749701541752,2.7168994,2760.1,2760.0,21.328]
[1749701542352,6.4860294,2760.1,2759.6,21.913]
[1749701542558,0.72453,2759.9,2759.7,22.05156]
[1749701542853,1.4490294,2759.8,2759.7,22.05156]
[1749701543054,1.4490294,2759.8,2759.7,22.05956]
[1749701544153,1.4490294,2759.8,2759.6,63.43758]
[1749701544451,1.4490294,2759.8,2759.7,21.329]
[1749701544452,1.90244,2759.8,2759.7,21.329]
[1749701544644,6.55950033,2759.8,2759.7,21.329]
[1749701546152,5.83496033,2759.8,2759.7,22.05357]
[1749701546354,4.65706033,2759.8,2759.7,22.05257]
[1749701546552,1.44926033,2759.8,2759.7,22.05257]
[1749701547358,1.44926033,2759.8,2759.7,5.18957]
[1749701547659,5.38160033,2759.8,2759.7,21.324]
[1749701547856,0.72457,2759.7,2759.6,21.913]
[1749701548157,3.43803033,2759.7,2759.6,21.318]
[1749701548954,3.43803033,2759.7,2759.6,4.465]
[1749701549158,3.43803033,2759.7,2759.6,21.32]
[1749701549358,5.60584564,2759.7,2759.6,21.32]
[1749701549553,5.60584564,2759.7,2759.4,0.00543114]
[1749701549554,0.72462,2759.5,2759.4,0.00543114]
[1749701549760,5.38168033,2759.5,2759.4,21.32643114]
[1749701550157,5.38168033,2759.5,2759.4,4.47143114]
[1749701550158,8.80798655,2759.5,2759.4,4.47143114]
[1749701550363,6.64018033,2759.5,2759.4,21.33443114]
[1749701550550,6.64018033,2759.5,2759.4,0.00543114]
[1749701550754,0.72478,2758.9,2758.8,4.466]
[1749701550963,4.65706033,2758.9,2758.8,22.0498]
[1749701551263,1.44926033,2758.9,2758.8,22.0498]
[1749701551857,1.44926033,2758.9,2758.8,22.7182]
[1749701555055,1.44926033,2758.9,2758.8,21.9934]
[1749701555262,1.44926033,2758.9,2758.8,22.71821]
[1749701555658,2.17404033,2758.9,2758.8,21.9934]
[1749701556263,1.44926033,2758.9,2758.8,21.331]
[1749701556467,7.34984033,2758.9,2758.8,21.331]
[1749701558060,6.62506033,2758.9,2758.8,21.331]
[1749701558265,2.14356033,2758.9,2758.8,22.05581]
[1749701558565,0.6943,2758.9,2758.8,22.05581]
[1749701558863,0.6943,2758.9,2758.8,22.04981]
[1749701558864,2.14405036,2758.9,2758.8,22.04981]
[1749701559068,0.5436,2759.0,2758.9,0.72478]
[1749701559257,1.99331258,2759.0,2758.9,0.72478]
[1749701560269,2.71806258,2759.0,2758.8,22.04979]
[1749701560471,0.5436,2759.0,2758.8,21.325]
[1749701560769,0.72478,2758.9,2758.8,22.0498]
[1749701561465,1.44973434,2758.9,2758.8,22.0498]
[1749701561868,2.17451434,2758.9,2758.8,21.321]
[1749701562067,3.47541434,2758.9,2758.8,21.321]
[1749701562769,3.47541434,2758.9,2758.8,22.04581]
[1749701563269,6.68321434,2758.9,2758.8,21.321]
[1749701563681,4.65753434,2758.9,2758.8,21.321]
[1749701563872,1.44973434,2758.9,2758.8,22.04581]
[1749701564979,1.44973434,2758.9,2758.8,22.04481]
[1749701565275,2.17451434,2758.9,2758.8,22.04481]
[1749701565477,3.44681434,2758.9,2758.8,22.04481]
[1749701566270,2.72203434,2758.9,2758.8,22.04481]
[1749701566477,1.44973434,2758.9,2758.8,22.04481]
[1749701567678,1.44973434,2758.9,2758.8,22.03481]
[1749701567878,2.17451434,2758.9,2758.8,22.03481]
[1749701568078,1.44973434,2758.9,2758.8,22.03381]
[1749701568378,2.17451434,2758.9,2758.8,0.72481]
[1749701568577,1.44973434,2758.9,2758.8,22.00281]
[1749701569083,2.17451434,2758.9,2758.8,22.00281]
[1749701569883,0.72478,2758.9,2758.8,22.00281]
[1749701570084,2.17453173,2758.9,2758.8,22.00281]
[1749701570584,2.17453173,2758.9,2758.8,21.278]
[1749701570779,3.43053173,2758.9,2758.8,21.278]
[1749701570981,2.70575173,2758.9,2758.8,22.00281]
[1749701571182,1.44975173,2758.9,2758.8,22.00281]
[1749701571481,2.17453173,2758.9,2758.8,21.99881]
[1749701571681,1.44975173,2758.9,2758.8,21.99881]
[1749701572184,2.17453173,2758.9,2758.8,21.99881]
[1749701572386,2.17453173,2758.9,2758.8,21.274]
[1749701572587,0.72483,2758.7,2758.6,0.00543114]
[1749701572878,1.44975173,2758.7,2758.6,22.00227114]
[1749701573279,0.00543114,2758.9,2758.6,21.27743114]
[1749701573484,0.72483,2758.7,2758.6,4.44443114]
[1749701573685,2.17459164,2758.7,2758.6,21.27743114]
[1749701573882,2.79919164,2758.7,2758.6,21.27743114]
[1749701574282,2.07436164,2758.7,2758.6,22.00229114]
[1749701575390,1.44979045,2758.7,2758.6,22.00229114]
[1749701575585,1.44979045,2758.7,2758.6,0.73029114]
[1749701575885,1.44979045,2758.7,2758.6,22.00229114]
[1749701577788,0.6365,2758.8,2758.7,0.72483]
[1749701577987,2.08630942,2758.8,2758.7,0.72483]
[1749701579689,1.44980942,2758.8,2758.7,0.72483]
[1749701580086,0.5436,2759.0,2758.9,0.72478]
[1749701580689,0.5436,2759.0,2758.9,41.52478]
[1749701581679,2.16739801,2759.8,2759.1,0.72473]
[1749701581882,3.2078,2759.6,2759.0,4.4026]
[1749701582084,0.72467,2759.4,2759.2,0.72469]
[1749701582386,1.96213,2759.5,2759.3,22.01166]
[1749701583490,1.36625,2759.4,2759.3,21.287]
[1749701583685,1.8791,2759.4,2759.3,0.72468]
[1749701583891,2.60375,2759.4,2759.3,21.309]
[1749701584393,1.8791,2759.4,2759.3,22.03368]
[1749701584693,2.60375,2759.4,2759.3,21.309]
[1749701585094,1.8791,2759.4,2759.3,22.03368]
[1749701586892,3.93241,2759.6,2759.4,0.72463]
[1749701587894,3.93241,2759.6,2759.5,0.72462]
[1749701588197,0.72461,2759.6,2759.4,0.72463]
[1749701588495,1.2587,2759.6,2759.5,0.72462]
[1749701588892,0.73003114,2759.7,2759.5,0.72462]
[1749701589796,0.73003114,2759.7,2759.6,0.7246]
[1749701590297,0.00543114,2759.7,2759.6,0.7246]
[1749701590500,0.73002114,2759.7,2759.4,0.6369]
[1749701590701,0.7246,2759.6,2759.5,0.7246]
[1749701591198,1.9583,2759.6,2759.5,0.7246]
[1749701591598,5.1661,2759.6,2759.5,0.7246]
[1749701592093,6.61555002,2759.6,2759.5,0.7246]
[1749701593296,6.61555002,2759.6,2759.4,0.72463]
[1749701593497,1.44945002,2759.5,2759.4,0.72463]
[1749701594499,3.2078,2759.6,2759.5,0.72462]
[1749701594693,4.65719757,2759.6,2759.5,0.72462]
[1749701594893,1.44939757,2759.6,2759.5,0.72462]
[1749701596604,4.65719757,2759.6,2759.5,0.72462]
[1749701597293,1.44939757,2759.6,2759.5,0.72462]
[1749701598902,2.17399757,2759.6,2759.5,0.72462]
[1749701599403,5.38179757,2759.6,2759.5,21.98262]
[1749701599597,5.38179757,2759.6,2759.5,4.427]
[1749701599903,6.59981757,2759.6,2759.5,21.258]
[1749701603398,6.59981757,2759.6,2759.5,21.98262]
[1749701603799,6.59981757,2759.6,2759.5,21.258]
[1749701605201,6.59991906,2759.6,2759.5,21.258]
[1749701607407,6.59991906,2759.6,2759.5,21.98262]
[1749701608104,6.59991906,2759.6,2759.5,21.258]
[1749701608306,6.88971906,2759.6,2759.5,21.258]
[1749701609205,6.88971906,2759.6,2759.5,21.98262]
[1749701610006,6.88971906,2759.6,2759.5,21.258]
[1749701611407,6.88971906,2759.6,2759.5,21.98262]
[1749701611606,6.88971906,2759.6,2759.5,21.258]
[1749701612610,1.73929906,2759.6,2759.5,21.98262]
[1749701613008,1.73929906,2759.6,2759.5,21.98862]
[1749701614005,2.46389906,2759.6,2759.5,21.264]
[1749701614507,2.46389906,2759.6,2759.5,21.98862]
[1749701614702,2.46389906,2759.6,2759.5,21.264]
[1749701614904,0.72463,2759.5,2759.4,0.72465]
[1749701615106,2.17412906,2759.5,2759.4,21.98165]
[1749701615306,2.17413906,2759.5,2759.3,0.72466]
[1749701615503,0.72464,2759.5,2759.4,62.057]
[1749701615801,2.17409081,2759.5,2759.4,21.257]
[1749701616408,2.17409081,2759.5,2759.4,21.268]
[1749701616909,2.17409081,2759.5,2759.4,21.263]
[1749701617206,3.44009081,2759.5,2759.4,21.263]
[1749701620407,3.44009081,2759.5,2759.4,21.98765]
[1749701620707,1.44945081,2759.5,2759.4,21.98765]
[1749701622314,2.17407081,2759.5,2759.4,21.98765]
[1749701623814,1.44945081,2759.5,2759.4,21.98765]
[1749701625109,2.17407081,2759.5,2759.4,21.256]
[1749701626112,2.17407081,2759.5,2759.4,21.98065]
[1749701628121,2.17407081,2759.5,2759.4,21.256]
[1749701629417,2.17407081,2759.5,2759.4,21.98065]
[1749701629611,2.17407081,2759.5,2759.4,21.256]
[1749701629916,2.46397081,2759.5,2759.4,21.256]
[1749701630405,2.46397081,2759.5,2759.4,21.98065]
[1749701630611,2.46397081,2759.5,2759.4,21.256]
[1749701631411,2.46397081,2759.5,2759.4,21.98065]
[1749701631717,0.72468,2759.3,2759.2,1.37478]
[1749701631911,1.44945081,2759.3,2759.2,22.62978]
[1749701632218,2.17413081,2759.3,2759.2,22.62978]
[1749701633821,1.44945081,2759.3,2759.2,22.62978]
[1749701634521,2.17413081,2759.3,2759.2,22.62978]
[1749701634720,1.44945081,2759.3,2759.2,22.62978]
[1749701636919,2.17413081,2759.3,2759.2,22.62978]
[1749701637118,1.44945081,2759.3,2759.2,22.62978]
[1749701639421,2.17413081,2759.3,2759.2,22.62978]
[1749701640011,1.44945081,2759.3,2759.2,22.62978]
[1749701640212,0.7247,2759.2,2759.1,16.828]
[1749701640417,0.72483,2758.7,2758.6,0.00543114]
[1749701640618,0.72483,2758.7,2758.6,16.83343114]
[1749701640619,5.38208081,2758.7,2758.6,16.83343114]
[1749701640820,5.38208081,2758.7,2758.0,3.2078]
[1749701640821,0.72491,2758.5,2757.8,4.426]
[1749701641017,1.44945081,2758.4,2758.3,0.72494]
[1749701641222,1.44945081,2758.4,2758.3,25.18674]
[1749701641417,1.44945081,2758.4,2758.3,30.18674]
[1749701641625,0.6294,2758.9,2758.8,0.72481]
[1749701641823,0.6294,2758.9,2758.8,21.97881]
[1749701643721,3.2078,2759.0,2758.9,0.72478]
[1749701644526,3.2078,2759.0,2758.8,21.97879]
[1749701645327,0.72478,2758.9,2758.8,21.254]
[1749701645626,1.94168,2758.9,2758.8,21.254]
[1749701647019,1.2169,2758.9,2758.6,0.00543114]
[1749701647220,3.93263,2758.7,2758.6,0.00543114]
[1749701647725,5.20003,2758.7,2758.6,0.00543114]
[1749701648321,5.20003,2758.7,2758.6,16.83543114]
[1749701651024,5.20003,2758.7,2758.6,0.00543114]
[1749701652424,11.28731,2758.7,2757.9,0.72503]
[1749701652725,0.72502,2758.0,2757.9,5.15203]
[1749701653028,0.72502,2758.0,2757.9,21.98403]
[1749701653227,0.725,2758.1,2758.0,0.725]
[1749701653428,0.5923,2758.2,2757.9,21.259]
[1749701653630,2.17519041,2758.1,2758.0,0.72502]
[1749701653823,0.72502,2758.0,2757.9,21.98403]
[1749701654122,2.17520041,2758.0,2757.9,21.259]
[1749701655929,0.72502,2758.0,2757.9,4.427]
[1749701656125,0.72502,2758.0,2757.9,21.26]
[1749701656431,5.38306532,2758.0,2757.9,21.26]
[1749701658125,5.38306532,2758.0,2757.9,4.427]
[1749701658331,5.38306532,2758.0,2757.9,21.261]
[1749701659331,5.38306532,2758.0,2757.9,4.427]
[1749701659529,5.38306532,2758.0,2757.9,21.261]
[1749701659933,0.72504,2757.9,2757.8,0.00543114]
[1749701660225,3.45258532,2757.9,2757.8,0.00543114]
[1749701663832,2.17528532,2757.9,2757.8,0.00543114]
[1749701664030,2.17528532,2757.9,2757.8,0.60063114]
[1749701664730,2.17528532,2757.9,2757.8,0.00543114]
[1749701666336,3.45388532,2757.9,2757.8,0.00543114]
[1749701670229,0.7251,2757.7,2757.6,4.427]
[1749701670425,5.38314532,2757.7,2757.6,4.427]
[1749701670930,6.57204532,2757.7,2757.6,4.427]
[1749701671733,5.38314532,2757.7,2757.6,4.427]
[1749701673636,5.67314532,2757.7,2757.6,4.427]
[1749701676732,5.67314532,2757.7,2757.6,21.264]
[1749701677232,5.67314532,2757.7,2757.6,21.98912]
[1749701677431,5.67314532,2757.7,2757.6,21.264]
[1749701677840,5.67314532,2757.7,2757.6,21.98912]
[1749701678034,5.67314532,2757.7,2757.6,21.264]
[1749701680342,5.67314532,2757.7,2757.6,21.98912]
[1749701680842,5.67314532,2757.7,2757.6,22.59452]
[1749701681042,5.67314532,2757.7,2757.6,21.8694]
[1749701681643,5.67314532,2757.7,2757.6,22.59452]
[1749701682045,5.67314532,2757.7,2757.6,21.8694]
[1749701682344,5.67314532,2757.7,2757.6,22.59452]
[1749701682544,5.67314532,2757.7,2757.6,21.8694]
[1749701683043,5.67314532,2757.7,2757.6,22.59452]
[1749701683346,5.67314532,2757.7,2757.6,21.8694]
[1749701685141,1.81287,2757.5,2756.6,3.2078]
[1749701685343,3.62389367,2757.4,2756.9,1.81327]
[1749701685544,1.45024532,2757.3,2757.0,5.0267]
[1749701685742,1.45024532,2757.2,2757.1,18.16163]
[1749701685942,4.65804532,2757.2,2757.1,18.16163]
[1749701686542,4.65804532,2757.2,2757.1,19.36223]
[1749701687042,5.38327532,2757.2,2757.1,17.4364]
[1749701687246,5.38327532,2757.2,2757.1,0.6014]
[1749701687446,0.72525,2757.1,2757.0,0.5987]
[1749701687648,0.72528,2757.0,2756.9,4.425]
[1749701687852,4.03462532,2757.0,2756.9,4.425]
[1749701691963,0.7253,2756.9,2756.8,16.836]
[1749701692155,6.63174532,2756.9,2756.8,16.836]
[1749701692355,5.38334532,2756.9,2756.8,16.836]
[1749701697758,6.68234532,2756.9,2756.8,16.836]
[1749701697959,5.38334532,2756.9,2756.8,16.836]
[1749701698158,0.544,2757.1,2757.0,0.72528]
[1749701698657,0.544,2757.1,2757.0,46.52528]
[1749701698961,0.8341,2757.1,2757.0,47.15108]
[1749701699152,0.8341,2757.1,2757.0,48.37158]
[1749701700460,0.8341,2757.1,2757.0,43.37158]
[1749701701560,3.2078,2757.5,2757.4,0.72517]
[1749701701758,3.2078,2757.8,2757.7,0.72509]
[1749701701958,3.2078,2757.8,2757.7,17.56209]
[1749701702158,3.93287,2757.8,2757.7,16.837]
[1749701702663,3.2078,2757.8,2757.7,16.837]
[1749701702866,3.93287,2757.8,2757.7,16.837]
[1749701703067,5.11177,2757.8,2757.7,16.837]
[1749701703264,9.3867,2757.8,2757.2,4.426]
[1749701703568,3.933,2757.3,2757.2,4.426]
[1749701703865,3.933,2757.3,2757.2,21.262]
[1749701705264,3.2078,2757.3,2757.2,21.98723]
[1749701705468,3.93294,2757.6,2757.2,21.262]
[1749701705661,3.2078,2757.6,2757.3,1.2417]
[1749701705862,0.72516,2757.5,2757.4,0.72516]
[1749701706461,0.72517,2757.4,2757.3,1.96688]
[1749701706969,3.93293,2757.6,2757.5,0.72515]
[1749701707267,3.93295,2757.6,2757.4,0.72516]
[1749701707468,3.2078,2757.6,2757.5,0.72515]
[1749701707668,3.2078,2757.6,2757.3,1.2417]
[1749701707971,0.72517,2757.4,2757.3,1.96689]
[1749701708166,0.72517,2757.4,2757.3,1.2417]
[1749701708467,0.72517,2757.4,2757.2,21.262]
[1749701708468,0.72523,2757.2,2757.1,0.72524]
[1749701708666,0.72523,2757.2,2757.1,21.98724]
[1749701708869,0.72523,2757.2,2757.1,21.262]
[1749701709064,3.2078,2757.3,2757.1,4.426]
[1749701709260,1.37024,2757.2,2757.1,4.426]
[1749701709570,1.37024,2757.2,2757.1,21.261]
[1749701709767,2.59924,2757.2,2757.1,21.261]
[1749701710169,4.05001311,2757.2,2757.1,21.261]
[1749701710571,2.82101311,2757.2,2757.1,21.261]
[1749701710869,2.09577311,2757.2,2757.1,21.98625]
[1749701711073,2.82100311,2757.2,2757.1,21.98625]
[1749701711271,2.82100311,2757.2,2757.1,21.261]
[1749701711768,2.82100311,2757.2,2757.1,21.98625]
[1749701711962,1.45077311,2757.2,2757.1,21.98625]
[1749701713571,0.72508,2757.8,2757.7,0.72508]
[1749701713772,1.4504505,2757.8,2757.7,21.98609]
[1749701716472,0.00543114,2758.3,2758.2,0.72496]
[1749701716672,0.00543114,2758.3,2758.2,21.98496]
[1749701716870,0.73037114,2758.3,2758.2,21.26]
[1749701717175,0.73037114,2758.3,2758.2,16.834]
[1749701717474,1.81251,2758.1,2757.7,4.424]
[1749701717769,1.81251,2758.1,2757.4,21.258]
[1749701717770,0.72515,2757.5,2757.4,21.258]